[Event "Seniors-LEM-65 Sachsen-Anhalt 2024"]
[Site "Magdeburg"]
[Date "2024.07.01"]
[Round "1.27"]
[White "Christen, Pierre"]
[Black "Freitag, Ingo"]
[Result "1-0"]
[ECO "A53"]
[WhiteElo "1946"]
[BlackElo "1810"]
[Annotator "TA"]
[PlyCount "99"]
[EventDate "2024.06.25"]
[EventType "swiss"]
[EventCountry "GER"]
[SourceTitle "playchess.com"]
[Source "ChessBase"]
[SourceQuality "1"]
[TimeControl "40/5400+30:1800+30"]

{[%evp 11,99,16,56,23,33,36,39,12,60,58,105,105,109,50,235,233,235,228,227,238,236,192,219,220,210,195,206,143,152,138,199,195,237,213,268,200,296,294,276,267,277,277,285,0,272,264,271,222,270,275,314,307,334,308,317,315,318,310,431,377,491,475,615,599,735,395,429,329,1759,1549,1249,870,851,824,5473,5206,2534,456,1990,914,1597,1797,1061,1869,7640,6518,12847,6917,4683,2854]} 1. c4 {[%emt 0:00:11]} e5 {[%emt 0:00:29]} 2. g3 {[%emt 0:00:17]} Nf6 {[%emt 0:00:36]} 3. Bg2 {[%emt 0:00:22]} c6 {[%emt 0:00:29]} 4. d4 {[%emt 0:04:22]} exd4 {[%emt 0:03:44]} 5. Qxd4 {[%emt 0:00:10]} Be7 {[%emt 0:01:16]} 6. Nc3 {[%emt 0:01:49]} d6 {[%emt 0:01:31]} 7. Nf3 {[%emt 0:03:04]} O-O {[%emt 0:00:42]} 8. O-O {[%emt 0:01:34]} Nbd7 {[%emt 0:02:07]} 9. Bf4 {[%emt 0:07:52] White is slightly better.} Ne8 {[%emt 0:05:15]} (9... Nc5 $11) 10. Rad1 {[%emt 0:07:56]} Ndf6 {[%emt 0:07:03]} (10... f5 $14) 11. e4 $16 {[%emt 0:14:30] White has more active pieces.} Bg4 {[%emt 0:10:28]} 12. e5 {[%emt 0:04:35]} ({White should play} 12. Qd2 $16) 12... Nh5 $2 {[%emt 0:12:38]} (12... dxe5 $14 13. Qxe5 Nd7) 13. exd6 $18 {[%emt 0:07:58]} Bf6 {[%emt 0:05:13]} 14. Be5 {[%emt 0:08:05]} Bxe5 {[%emt 0:01:39]} 15. Qxe5 {[%emt 0:02:23]} ({Don't take} 15. Nxe5 Bxd1 16. Rxd1 Nhf6) 15... Nhf6 {[%emt 0:01:59]} 16. h3 {[%emt 0:03:35]} Be6 {[%emt 0:01:56]} 17. b3 {[%emt 0:01:56][%cal Bb2b3,Bb3b4][%mdl 32]} Nd7 {[%emt 0:01:49]} 18. Qe3 {[%emt 0:02:41]} Nef6 {[%emt 0:04:07][%cal Be8f6,Bf6h7,Bh7f8][%mdl 32]} 19. c5 {[%emt 0:02:22]} Re8 {[%emt 0:03:23][%cal Oe6b3] [#]} 20. Qd4 $1 {[%emt 0:02:18]} h6 {[%emt 0:03:36]} (20... Qa5 $16) 21. Rfe1 {[%emt 0:01:13]} Nh7 {[%emt 0:02:07]} 22. b4 {[%emt 0:02:54]} Nhf8 {[%emt 0:03:05]} 23. a4 {[%emt 0:00:37][%cal Ba2a4,Ba4a5][%mdl 32]} Qf6 {[%emt 0:02:13]} (23... a5 $142 24. b5 Rc8) 24. a5 {[%emt 0:03:01]} a6 {[%emt 0:01:40]} 25. Qxf6 {[%emt 0:00:57]} Nxf6 {[%emt 0:00:25]} 26. Nd4 {[%emt 0:00:18]} Bd7 {[%emt 0:01:16]} 27. Nf3 $2 {[%emt 0:06:06]} ({White should try} 27. f4 $18) 27... Rxe1+ $4 {[%emt 0:03:43][%mdl 8192]} (27... Be6 $1 $11 28. Nd4 N8d7) 28. Rxe1 {[%emt 0:00:12]} Re8 {[%emt 0:00:35]} 29. Kf1 {[%emt 0:01:36]} Rxe1+ {[%emt 0:02:56]} 30. Kxe1 {[%emt 0:00:10]} Be6 {[%emt 0:01:03]} 31. Nd4 {[%emt 0:00:48][%cal Ob4b5]} Bd7 {[%emt 0:00:31]} 32. Kd2 {[%emt 0:00:46]} Ne6 {[%emt 0:02:34]} 33. Nxe6 {[%emt 0:01:49]} Bxe6 {[%emt 0:00:28][%mdl 4096] Endgame. KBN-KBN} 34. Ke3 {[%emt 0:00:29]} Bd7 {[%emt 0:01:12]} 35. g4 {[%emt 0:00:36]} g6 {[%emt 0:02:58]} 36. f4 {[%emt 0:02:11]} Ne8 {[%emt 0:01:14]} 37. Kd4 {[%emt 0:01:22]} f6 {[%emt 0:01:14]} 38. Bf3 {[%emt 0:00:47][%cal Oc3d5]} Kf7 {[%emt 0:00:47]} 39. Be2 {[%emt 0:01:47]} g5 $2 {[%emt 0:03:04]} (39... Be6 40. Na4 Ng7) 40. Bc4+ {[%emt 0:01:47] White is clearly winning.} Kf8 {[%emt 0:02:28]} 41. Na4 {[%emt 0:06:03] [#] Strongly threatening Nb6.} Ng7 {[%emt 0:04:52]} 42. Nb6 {[%emt 0:06:52]} Ke8 {[%emt 0:07:02]} 43. fxg5 {[%emt 0:08:37]} hxg5 {[%emt 0:00:55]} 44. Ke4 {[%emt 0:02:29]} (44. Nxd7 $142 Kxd7 45. Ke4) 44... Kd8 {[%emt 0:08:27]} (44... Be6 $142 45. Bf1 Ba2) 45. Bf7 {[%emt 0:01:57]} (45. Nxd7 $142 Kxd7 46. Kf3) 45... Be8 {[%emt 0:06:19]} 46. Bxe8 {[%emt 0:01:10]} Kxe8 {[%emt 0:00:15]} 47. Na8 {[%emt 0:00:15]} Kd7 {[%emt 0:01:09]} 48. Nc7 {[%emt 0:00:25] Threatens to win with Ke3.} Kc8 {[%emt 0:02:02]} 49. Kf3 {[%emt 0:00:09] White wants to mate with Kg2.} Kd7 {[%emt 0:00:34]} 50. Kg3 {[%emt 0:10:07] Weighted Error Value: White=0.61/Black=0.53.  Loses game:     	---       	Black=2      Missed win:     	White=1     	---        Mistake:       	White=1     	Black=5      Inaccurate:     	White=2     	Black=3      OK:         	White=11    	Black=8      Strong:       	White=1     	---} 1-0

[Event "Seniors-LEM-65 Sachsen-Anhalt 2024"]
[Site "Magdeburg"]
[Date "2024.07.01"]
[Round "1.28"]
[White "Weigelt, Joachim"]
[Black "Lorenz, Dietmar"]
[Result "0-1"]
[ECO "B12"]
[WhiteElo "1810"]
[BlackElo "1981"]
[Annotator "TA"]
[PlyCount "86"]
[EventDate "2024.06.25"]
[EventType "swiss"]
[EventCountry "GER"]
[SourceTitle "playchess.com"]
[Source "ChessBase"]
[SourceQuality "1"]
[TimeControl "40/5400+30:1800+30"]

{[%evp 9,86,-4,0,-3,12,-48,-43,-60,-62,-95,-50,-118,-65,-158,-66,-126,-103,-102,-71,-158,-170,-162,-71,-169,-170,-277,-266,-278,-277,-267,-269,-289,-274,-287,-279,-389,-377,-396,-312,-381,-364,-404,-352,-412,-397,-356,-355,-359,-359,-415,-272,-322,-274,-353,-326,-420,-428,-534,-529,-531,-548,-708,-703,-717,-781,-790,-736,-809,-785,-962,-937,-1854,-1770,-1677,-992,-1148,-1122,-1044,-1012]} 1. e4 {[%emt 0:00:15]} c6 {[%emt 0:00:05]} 2. d4 {[%emt 0:00:23]} d5 {[%emt 0:00:05]} 3. e5 {[%emt 0:00:19]} c5 {[%emt 0:00:09]} 4. c3 {[%emt 0:00:53]} Bf5 {[%emt 0:00:29]} 5. g4 {[%emt 0:01:09]} Be4 {[%emt 0:01:07]} 6. f3 {[%emt 0:00:16]} Bg6 {[%emt 0:00:13]} 7. h4 {[%emt 0:00:18]} (7. Bb5+ $11 Nc6 8. Qa4) 7... h5 $1 $15 {[%emt 0:00:42]} 8. g5 {[%emt 0:00:09] Black is slightly better.} e6 {[%emt 0:00:49]} 9. Ne2 {[%emt 0:01:22]} Ne7 {[%emt 0:03:58]} 10. Nf4 {[%emt 0:01:57]} (10. Be3 $15) 10... Bf5 {[%emt 0:01:55]} (10... cxd4 $17 11. Nxg6 Nxg6 12. cxd4 Nc6) 11. Bd3 {[%emt 0:04:42]} ({White should play} 11. Be3 $15) 11... g6 {[%emt 0:02:25]} (11... cxd4 $17 {...Nbc6 is the strong threat.} 12. Bb5+ Nbc6 13. cxd4 a6 (13... Bxb1 14. Bxc6+ Nxc6 15. Rxb1 $17) 14. Bxc6+ Nxc6) 12. Be3 {[%emt 0:01:58]} ({White should try} 12. Na3 $15) 12... Nbc6 {[%emt 0:02:08]} 13. Na3 {[%emt 0:02:23]} a6 {[%emt 0:02:36] Prevents Nb5} 14. Rc1 {[%emt 0:01:05]} (14. Nc2 $142) 14... Bxd3 $17 {[%emt 0:08:20]} 15. Qxd3 {[%emt 0:01:28]} c4 {[%emt 0:00:57]} (15... Qb6 $19 {is more deadly.} 16. Rb1 cxd4 17. cxd4 Nf5) 16. Qc2 {[%emt 0:02:09]} (16. Qd2 $17) 16... Nf5 $19 {[%emt 0:01:39]} 17. Bf2 {[%emt 0:00:41]} (17. Kf2 $142) 17... Qa5 {[%emt 0:01:10][%csl LRa3,LRd4]} 18. Ne2 {[%emt 0:01:59]} Bxa3 {[%emt 0:04:13]} 19. bxa3 {[%emt 0:00:19]} Qxa3 {[%emt 0:00:12]} 20. O-O {[%emt 0:00:15]} O-O {[%emt 0:00:56]} 21. Rb1 {[%emt 0:02:28]} b5 {[%emt 0:00:30]} 22. Rb2 {[%emt 0:02:13]} Rfb8 {[%emt 0:03:04]} 23. Rfb1 {[%emt 0:01:28]} Rb7 {[%emt 0:04:48]} 24. Kh2 {[%emt 0:02:39]} Rab8 {[%emt 0:01:34]} 25. Kh3 {[%emt 0:00:54]} Nfe7 {[%emt 0:06:45] Excellent horsemanship.} 26. Nf4 {[%emt 0:05:31]} Kg7 {[%emt 0:00:37]} 27. Ne2 {[%emt 0:03:24]} Nc8 {[%emt 0:01:25]} 28. Qc1 {[%emt 0:04:32]} Nb6 {[%emt 0:02:30]} 29. Qf4 {[%emt 0:02:22]} Nd7 {[%emt 0:04:58] Active counter play!} 30. Qc1 {[%emt 0:01:17]} a5 {[%emt 0:05:01]} 31. Qc2 {[%emt 0:01:34]} b4 {[%emt 0:04:50] [#] White must now prevent ...b3.} 32. Kg2 {[%emt 0:04:00]} b3 {[%emt 0:04:49]} 33. axb3 {[%emt 0:00:44] Black is clearly winning.} cxb3 {[%emt 0:00:57]} 34. Qc1 {[%emt 0:00:38]} Qa4 {[%emt 0:02:59]} 35. Qd2 {[%emt 0:05:04]} Qc4 {[%emt 0:00:44]} 36. Nc1 {[%emt 0:01:25]} a4 {[%emt 0:00:56]} 37. Ra1 {[%emt 0:00:51] White is weak on the light squares} Ra7 {[%emt 0:02:13]} 38. Ra3 {[%emt 0:02:46]} Na5 {[%emt 0:07:51]} 39. Rb1 {[%emt 0:02:41]} Qc6 {[%emt 0:00:30] [#] And now ...Nc4 would win.} 40. c4 {[%emt 0:04:26]} Nxc4 {[%emt 0:00:35]} 41. Qc3 {[%emt 0:30:07]} Qb7 {[%emt 0:35:20]} 42. Raxb3 {[%emt 0:03:27]} axb3 {[%emt 0:00:14]} 43. Rxb3 {[%emt 0:01:05]} Qc8 {[%emt 0:00:27] Weighted Error Value: White=0.69/Black=0.33.  Mistake:       	White=7     	Black=3      Inaccurate:     	White=2     	Black=3      OK:         	White=4     	Black=12     Strong:       	---       	Black=1} 0-1

[Event "Seniors-LEM-65 Sachsen-Anhalt 2024"]
[Site "Magdeburg"]
[Date "2024.07.01"]
[Round "1.29"]
[White "Richter, Rainer"]
[Black "Bielfeldt, Michael"]
[Result "1-0"]
[ECO "D12"]
[WhiteElo "1981"]
[BlackElo "1810"]
[Annotator "RC"]
[PlyCount "153"]
[EventDate "2024.06.25"]
[EventType "swiss"]
[EventCountry "GER"]
[SourceTitle "playchess.com"]
[Source "ChessBase"]
[SourceQuality "1"]
[TimeControl "40/5400+30:1800+30"]

1. d4 {[%emt 0:00:04]} d5 {[%emt 0:00:10]} 2. Nf3 {[%emt 0:00:03]} Bf5 {[%emt 0:00:32]} 3. c4 {[%emt 0:00:21]} c6 {[%emt 0:00:43]} 4. Nc3 {[%emt 0:00:24]} e6 {[%emt 0:00:14]} 5. Qb3 {[%emt 0:00:40]} Qb6 {[%emt 0:01:08]} 6. e3 {[%emt 0:14:52]} Nf6 {[%emt 0:02:55]} 7. c5 {[%emt 0:04:00]} Qc7 {[%emt 0:00:44]} 8. Bd2 {[%emt 0:00:28]} Nbd7 {[%emt 0:01:13]} 9. Be2 {[%emt 0:01:38]} h6 {[%emt 0:02:06]} 10. O-O {[%emt 0:04:01]} Be7 {[%emt 0:00:18]} 11. Qd1 {[%emt 0:01:36]} O-O {[%emt 0:00:38]} 12. b4 {[%emt 0:00:03]} e5 {[%emt 0:04:21]} 13. Nh4 {[%emt 0:13:39]} Bh7 {[%emt 0:02:01]} 14. f4 {[%emt 0:00:48]} exd4 {[%emt 0:03:56]} 15. exd4 {[%emt 0:00:16]} Ne4 {[%emt 0:00:10]} 16. Nxe4 {[%emt 0:05:27]} Bxh4 {[%emt 0:09:08]} 17. Nf2 {[%emt 0:08:32]} Bf6 {[%emt 0:03:20]} 18. Be3 {[%emt 0:01:08]} Rfe8 {[%emt 0:05:54]} 19. Qd2 {[%emt 0:00:37]} Nf8 {[%emt 0:07:16]} 20. Ng4 {[%emt 0:00:10]} Bd8 {[%emt 0:05:00]} 21. f5 {[%emt 0:06:13]} f6 {[%emt 0:08:06]} 22. Bd3 {[%emt 0:14:44]} Kh8 {[%emt 0:05:22]} 23. Bf4 {[%emt 0:04:17]} Qf7 {[%emt 0:05:23]} 24. a4 {[%emt 0:04:00]} Bc7 {[%emt 0:04:10]} 25. b5 {[%emt 0:00:21]} a6 {[%emt 0:02:26]} 26. bxa6 {[%emt 0:00:59]} bxa6 {[%emt 0:00:10]} 27. Rab1 {[%emt 0:00:56]} Rab8 {[%emt 0:07:59]} 28. Rxb8 {[%emt 0:07:48]} Rxb8 {[%emt 0:01:31]} 29. Bxa6 {[%emt 0:00:29]} Bxf4 {[%emt 0:03:06]} 30. Qxf4 {[%emt 0:00:18]} Ra8 {[%emt 0:00:43]} 31. Bd3 {[%emt 0:01:45]} Rxa4 {[%emt 0:01:21]} 32. Rb1 {[%emt 0:00:18]} Ra3 {[%emt 0:05:38]} 33. Nf2 {[%emt 0:02:07]} Qe8 {[%emt 0:06:03]} 34. g4 {[%emt 0:00:22]} Bg8 {[%emt 0:00:23]} 35. h4 {[%emt 0:01:13]} Nh7 {[%emt 0:00:46]} 36. Kg2 {[%emt 0:00:32]} Ra2 {[%emt 0:00:43]} 37. Kf1 {[%emt 0:01:09]} Qe7 {[%emt 0:00:49]} 38. Re1 {[%emt 0:01:10]} Qb7 {[%emt 0:01:14]} 39. Rb1 {[%emt 0:00:21]} Qe7 {[%emt 0:00:12]} 40. Re1 {[%emt 0:01:50]} Qb7 {[%emt 0:00:26]} 41. Re8 {[%emt 0:02:38]} Ra1+ {[%emt 0:02:08]} 42. Kg2 {[%emt 0:00:18]} Qb2 {[%emt 0:02:02]} 43. Rb8 {[%emt 0:01:37]} Qc3 {[%emt 0:01:56]} 44. Re8 {[%emt 0:05:54]} Qb2 {[%emt 0:04:01]} 45. Qb8 {[%emt 0:00:57]} Qxb8 {[%emt 0:00:44]} 46. Rxb8 {[%emt 0:00:30]} Ra4 {[%emt 0:00:58]} 47. Rc8 {[%emt 0:02:11]} Rxd4 {[%emt 0:00:39]} 48. Rxc6 {[%emt 0:00:11]} Nf8 {[%emt 0:02:58]} 49. Rd6 {[%emt 0:00:58]} Ra4 {[%emt 0:01:06]} 50. Rd8 {[%emt 0:01:00]} Ra5 {[%emt 0:01:44]} 51. Rxf8 {[%emt 0:00:04]} Rxc5 {[%emt 0:00:08]} 52. Rd8 {[%emt 0:01:18]} Kh7 {[%emt 0:00:25]} 53. Rd7 {[%emt 0:00:37]} Ra5 {[%emt 0:00:40]} 54. Kg3 {[%emt 0:01:06]} Ra3 {[%emt 0:00:56]} 55. Kf4 {[%emt 0:00:27]} Ra2 {[%emt 0:00:37]} 56. Ke3 {[%emt 0:00:26]} Ra4 {[%emt 0:00:41]} 57. Bb5 {[%emt 0:00:52]} Ra5 {[%emt 0:01:42]} 58. Bc6 {[%emt 0:00:44]} Rc5 {[%emt 0:01:16]} 59. Ba4 {[%emt 0:00:51]} Rc3+ {[%emt 0:00:36]} 60. Nd3 {[%emt 0:00:10]} Rc4 {[%emt 0:00:57]} 61. Bd1 {[%emt 0:00:03]} Rc3 {[%emt 0:01:38]} 62. Bf3 {[%emt 0:00:29]} Ra3 {[%emt 0:00:31]} 63. Bxd5 {[%emt 0:01:06]} Bxd5 {[%emt 0:00:03]} 64. Rxd5 {[%emt 0:00:04]} Ra4 {[%emt 0:00:21]} 65. Nf4 {[%emt 0:00:26]} Ra3+ {[%emt 0:00:42]} 66. Rd3 {[%emt 0:00:17]} Ra8 {[%emt 0:01:46]} 67. Ne6 {[%emt 0:00:14]} Rg8 {[%emt 0:02:13]} 68. Rd7 {[%emt 0:02:26]} Kh8 {[%emt 0:00:01]} 69. Kf4 {[%emt 0:02:25]} Kh7 {[%emt 0:00:03]} 70. Rd8 {[%emt 0:00:18]} Rxd8 {[%emt 0:00:32]} 71. Nxd8 {[%emt 0:00:01]} Kg8 {[%emt 0:00:23]} 72. Ke4 {[%emt 0:01:42]} Kh7 {[%emt 0:01:04]} 73. h5 {[%emt 0:00:01]} Kg8 {[%emt 0:00:24]} 74. Kd5 {[%emt 0:00:01]} Kf8 {[%emt 0:00:46]} 75. Ke6 {[%emt 0:00:25]} Ke8 {[%emt 0:00:28]} 76. Nf7 {[%emt 0:00:23]} Kf8 {[%emt 0:00:16]} 77. Nxh6 {[%emt 0:00:05]} 1-0

[Event "Seniors-LEM-65 Sachsen-Anhalt 2024"]
[Site "Magdeburg"]
[Date "2024.07.01"]
[Round "1.29"]
[White "Richter, Rainer"]
[Black "Bielfeldt, Michael"]
[Result "*"]
[ECO "D12"]
[WhiteElo "1981"]
[BlackElo "1810"]
[Annotator "RC"]
[PlyCount "60"]
[EventDate "2024.06.25"]
[EventType "swiss"]
[EventCountry "GER"]
[SourceTitle "playchess.com"]
[Source "ChessBase"]
[SourceQuality "1"]
[TimeControl "40/5400+30:1800+30"]

1. d4 {[%emt 0:00:04]} d5 {[%emt 0:00:10]} 2. Nf3 {[%emt 0:00:03]} Bf5 {[%emt 0:00:32]} 3. c4 {[%emt 0:00:21]} c6 {[%emt 0:00:43]} 4. Nc3 {[%emt 0:00:24]} e6 {[%emt 0:00:14]} 5. Qb3 {[%emt 0:00:40]} Qb6 {[%emt 0:01:08]} 6. e3 {[%emt 0:14:52]} Nf6 {[%emt 0:02:55]} 7. c5 {[%emt 0:04:00]} Qc7 {[%emt 0:00:44]} 8. Bd2 {[%emt 0:00:28]} Nbd7 {[%emt 0:01:13]} 9. Be2 {[%emt 0:01:38]} h6 {[%emt 0:02:06]} 10. O-O {[%emt 0:04:01]} Be7 {[%emt 0:00:18]} 11. Qd1 {[%emt 0:01:36]} O-O {[%emt 0:00:38]} 12. b4 {[%emt 0:00:03]} e5 {[%emt 0:04:21]} 13. Nh4 {[%emt 0:13:39]} Bh7 {[%emt 0:02:01]} 14. f4 {[%emt 0:00:48]} exd4 {[%emt 0:03:56]} 15. exd4 {[%emt 0:00:16]} Ne4 {[%emt 0:00:10]} 16. Nxe4 {[%emt 0:05:27]} Bxh4 {[%emt 0:09:08]} 17. Nf2 {[%emt 0:08:32]} Bf6 {[%emt 0:03:20]} 18. Be3 {[%emt 0:01:08]} Rfe8 {[%emt 0:05:54]} 19. Qd2 {[%emt 0:00:37]} Nf8 {[%emt 0:07:16]} 20. Ng4 {[%emt 0:00:10]} Bd8 {[%emt 0:05:00]} 21. f5 {[%emt 0:06:13]} f6 {[%emt 0:08:06]} 22. Bd3 {[%emt 0:14:44]} Kh8 {[%emt 0:05:22]} 23. Bf4 {[%emt 0:04:17]} Qf7 {[%emt 0:05:23]} 24. a4 {[%emt 0:04:00]} Bc7 {[%emt 0:04:10]} 25. b5 {[%emt 0:00:21]} a6 {[%emt 0:02:26]} 26. bxa6 {[%emt 0:00:59]} bxa6 {[%emt 0:00:10]} 27. Rab1 {[%emt 0:00:56]} Rab8 {[%emt 0:07:59]} 28. Rxb8 {[%emt 0:07:48]} Rd8 {[%emt 0:19:07]} 29. Rc8 Rxc8 {[%emt 0:00:00]} 30. Bxa6 {[%emt 0:00:59]} Rb8 {[%emt 0:00:00]} *

[Event "Seniors-LEM-65 Sachsen-Anhalt 2024"]
[Site "Magdeburg"]
[Date "2024.07.01"]
[Round "1.30"]
[White "Bausch, Jean"]
[Black "Gehrmann, Rudolf-Rainer"]
[Result "0-1"]
[ECO "A37"]
[WhiteElo "1790"]
[BlackElo "1980"]
[Annotator "RC"]
[PlyCount "82"]
[EventDate "2024.06.25"]
[EventType "swiss"]
[EventCountry "GER"]
[SourceTitle "playchess.com"]
[Source "ChessBase"]
[SourceQuality "1"]
[TimeControl "40/5400+30:1800+30"]

1. c4 {[%emt 0:00:06]} c5 {[%emt 0:00:35]} 2. Nc3 {[%emt 0:00:20]} g6 {[%emt 0:00:08]} 3. Nf3 {[%emt 0:00:37]} Bg7 {[%emt 0:00:12]} 4. g3 {[%emt 0:00:21]} Nc6 {[%emt 0:00:20]} 5. Bg2 {[%emt 0:00:29]} e6 {[%emt 0:00:20]} 6. d3 {[%emt 0:02:15]} Nge7 {[%emt 0:00:18]} 7. O-O {[%emt 0:01:52]} d5 {[%emt 0:03:10]} 8. cxd5 {[%emt 0:04:49]} Nxd5 {[%emt 0:05:11]} 9. Nxd5 {[%emt 0:04:07]} exd5 {[%emt 0:00:13]} 10. Rb1 {[%emt 0:01:42]} O-O {[%emt 0:00:57]} 11. Bg5 {[%emt 0:07:19]} f6 {[%emt 0:03:07]} 12. Bd2 {[%emt 0:00:53]} Be6 {[%emt 0:03:07]} 13. b3 {[%emt 0:01:50]} Rc8 {[%emt 0:01:29]} 14. Rc1 {[%emt 0:02:26]} Qe7 {[%emt 0:03:20]} 15. e3 {[%emt 0:04:39]} b5 {[%emt 0:04:38]} 16. Qe2 {[%emt 0:02:05]} c4 {[%emt 0:08:09]} 17. dxc4 {[%emt 0:17:54]} dxc4 {[%emt 0:00:59]} 18. Nd4 {[%emt 0:02:07]} Nxd4 {[%emt 0:02:00]} 19. exd4 {[%emt 0:00:09]} Qd7 {[%emt 0:03:08]} 20. Rfe1 {[%emt 0:14:14]} Rfe8 {[%emt 0:02:39]} 21. d5 {[%emt 0:01:56]} Bxd5 {[%emt 0:13:20]} 22. Bxd5+ {[%emt 0:00:39]} Qxd5 {[%emt 0:00:07]} 23. Qxe8+ {[%emt 0:00:53]} Rxe8 {[%emt 0:00:06]} 24. Rxe8+ {[%emt 0:00:05]} Kf7 {[%emt 0:01:07]} 25. Rce1 {[%emt 0:03:00]} Qd7 {[%emt 0:01:53]} 26. bxc4 {[%emt 0:06:14]} bxc4 {[%emt 0:01:43]} 27. Bc3 {[%emt 0:04:29]} Qxe8 {[%emt 0:01:22]} 28. Rxe8 {[%emt 0:00:11]} Kxe8 {[%emt 0:00:12]} 29. f4 {[%emt 0:00:52]} Kf7 {[%emt 0:00:41]} 30. Kf2 {[%emt 0:00:17]} Ke6 {[%emt 0:03:05]} 31. Ke3 {[%emt 0:01:56]} Kd5 {[%emt 0:01:12]} 32. g4 {[%emt 0:01:11]} Bf8 {[%emt 0:04:50]} 33. Bxf6 {[%emt 0:03:15]} Bc5+ {[%emt 0:00:18]} 34. Kd2 {[%emt 0:03:01]} Bg1 {[%emt 0:07:42]} 35. h3 {[%emt 0:00:33]} Ke4 {[%emt 0:12:23]} 36. Be5 {[%emt 0:02:30]} Be3+ {[%emt 0:02:01]} 37. Kc3 {[%emt 0:00:14]} Bxf4 {[%emt 0:00:36]} 38. Bd4 {[%emt 0:00:43]} Be5 {[%emt 0:01:40]} 39. Bxe5 {[%emt 0:01:13]} Kxe5 {[%emt 0:00:08]} 40. Kxc4 {[%emt 0:00:40]} Kf4 {[%emt 0:10:02]} 41. Kd4 {[%emt 0:08:03]} g5 {[%emt 0:04:10]} 0-1